[Event "Titled Tuesday Blitz July 20 2021"]
[White "Shtyka, Sergey"]
[Black "Nazaretyan, Tigran"]
[WhiteFideId "4138465"]
[BlackFideId "24162345"]
[WhiteElo "2064"]
[BlackElo "2214"]
[Result "0-1"]
[Round "07"]
[TimeControl "180+1"]
[Date "2021.07.21"]
[WhiteClock "0:00:05"]
[BlackClock "0:01:03"]

1. e4 {[%clk 0:02:55]}  c5 {[%clk 0:02:59]} 2. Nf3 {[%clk 0:02:55]}  Nc6 {[%clk 0:02:59]} 3. d4 {[%clk 0:02:55]}  cxd4 {[%clk 0:02:59]} 4. Nxd4 {[%clk 0:02:56]}  Nf6 {[%clk 0:02:59]} 5. Nc3 {[%clk 0:02:56]}  d6 {[%clk 0:02:59]} 6. Bc4 {[%clk 0:02:55]}  e5 {[%clk 0:02:59]} 7. Nde2 {[%clk 0:02:54]}  Be7 {[%clk 0:02:58]} 8. Bg5 {[%clk 0:02:53]}  O-O {[%clk 0:02:43]} 9. Bxf6 {[%clk 0:02:52]}  Bxf6 {[%clk 0:02:44]} 10. Nd5 {[%clk 0:02:49]}  Bg5 {[%clk 0:02:43]} 11. O-O {[%clk 0:02:46]}  Kh8 {[%clk 0:02:42]} 12. Ng3 {[%clk 0:02:33]}  g6 {[%clk 0:02:41]} 13. c3 {[%clk 0:02:24]}  Be6 {[%clk 0:02:36]} 14. Bb3 {[%clk 0:02:23]}  Na5 {[%clk 0:02:34]} 15. Bc2 {[%clk 0:02:18]}  Nc4 {[%clk 0:02:33]} 16. b3 {[%clk 0:02:14]}  Nb6 {[%clk 0:02:33]} 17. c4 {[%clk 0:02:03]}  Nxd5 {[%clk 0:02:30]} 18. exd5 {[%clk 0:01:52]}  Bd7 {[%clk 0:02:29]} 19. Ne4 {[%clk 0:01:52]}  Be7 {[%clk 0:02:26]} 20. f4 {[%clk 0:01:52]}  f5 {[%clk 0:02:25]} 21. Nc3 {[%clk 0:01:27]}  Bf6 {[%clk 0:02:23]} 22. fxe5 {[%clk 0:01:16]}  Bxe5 {[%clk 0:02:23]} 23. Qd3 {[%clk 0:01:14]}  Qf6 {[%clk 0:02:21]} 24. Rf3 {[%clk 0:01:13]}  b5 {[%clk 0:02:14]} 25. Raf1 {[%clk 0:00:47]}  bxc4 {[%clk 0:02:13]} 26. bxc4 {[%clk 0:00:48]}  Rfc8 {[%clk 0:02:12]} 27. Ne2 {[%clk 0:00:33]}  Rab8 {[%clk 0:02:08]} 28. Bb3 {[%clk 0:00:32]}  a5 {[%clk 0:02:07]} 29. Qd1 {[%clk 0:00:28]}  Rb4 {[%clk 0:02:03]} 30. Kh1 {[%clk 0:00:28]}  a4 {[%clk 0:02:03]} 31. Bc2 {[%clk 0:00:26]}  Rbxc4 {[%clk 0:02:01]} 32. Bd3 {[%clk 0:00:27]}  R4c5 {[%clk 0:01:59]} 33. Nf4 {[%clk 0:00:26]}  Bxf4 {[%clk 0:01:54]} 34. Rxf4 {[%clk 0:00:27]}  Rxd5 {[%clk 0:01:54]} 35. Qe2 {[%clk 0:00:25]}  Re8 {[%clk 0:01:52]} 36. Qf3 {[%clk 0:00:23]}  Rde5 {[%clk 0:01:50]} 37. h3 {[%clk 0:00:22]}  Qe6 {[%clk 0:01:43]} 38. a3 {[%clk 0:00:21]}  Re3 {[%clk 0:01:42]} 39. Qd1 {[%clk 0:00:20]}  Qd5 {[%clk 0:01:41]} 40. R4f3 {[%clk 0:00:18]}  Qxd3 {[%clk 0:01:27]} 41. Qxd3 {[%clk 0:00:17]}  Rxd3 {[%clk 0:01:27]} 42. Rxd3 {[%clk 0:00:16]}  Bb5 {[%clk 0:01:28]} 43. Rfd1 {[%clk 0:00:16]}  Bxd3 {[%clk 0:01:27]} 44. Rxd3 {[%clk 0:00:17]}  Re1+ {[%clk 0:01:24]} 45. Kh2 {[%clk 0:00:17]}  Rb1 {[%clk 0:01:25]} 46. Rxd6 {[%clk 0:00:17]}  Rb3 {[%clk 0:01:25]} 47. Rd7 {[%clk 0:00:17]}  Rxa3 {[%clk 0:01:25]} 48. Ra7 {[%clk 0:00:17]}  h5 {[%clk 0:01:23]} 49. Kg1 {[%clk 0:00:15]}  Ra2 {[%clk 0:01:23]} 50. Kh2 {[%clk 0:00:15]}  h4 {[%clk 0:01:23]} 51. Kg1 {[%clk 0:00:15]}  f4 {[%clk 0:01:23]} 52. Kh1 {[%clk 0:00:14]}  Kg8 {[%clk 0:01:23]} 53. Kg1 {[%clk 0:00:15]}  a3 {[%clk 0:01:22]} 54. Kh1 {[%clk 0:00:14]}  Kf8 {[%clk 0:01:20]} 55. Kh2 {[%clk 0:00:13]}  f3 {[%clk 0:01:19]} 56. Kh1 {[%clk 0:00:13]}  f2 {[%clk 0:01:17]} 57. Kh2 {[%clk 0:00:12]}  Ra1 {[%clk 0:01:11]} 58. g4 {[%clk 0:00:07]}  f1=Q {[%clk 0:01:11]} 59. Ra8+ {[%clk 0:00:07]}  Kg7 {[%clk 0:01:11]} 60. Ra7+ {[%clk 0:00:07]}  Kf8 {[%clk 0:01:02]} 61. Ra8+ {[%clk 0:00:06]}  Ke7 {[%clk 0:01:02]} 62. Ra7+ {[%clk 0:00:07]}  Kd8 {[%clk 0:01:03]} 63. Ra8+ {[%clk 0:00:07]}  Kc7 {[%clk 0:01:03]} 64. Ra7+ {[%clk 0:00:05]}  Kb8 {[%clk 0:01:03]} 0-1


[Site "https://www.chess.com"]

[Event "Titled Tuesday Blitz July 20 2021"]
[White "Terletsky, Oleg"]
[Black "Przybylski, Wojciech"]
[WhiteFideId "14116774"]
[BlackFideId "1117599"]
[WhiteElo "2094"]
[BlackElo "2317"]
[Result "0-1"]
[Round "07"]
[TimeControl "180+1"]
[Date "2021.07.21"]
[WhiteClock "0:00:01"]
[BlackClock "0:00:05"]

1. e4 {[%clk 0:03:00]}  e5 {[%clk 0:02:58]} 2. Nf3 {[%clk 0:03:00]}  Nc6 {[%clk 0:02:58]} 3. Nc3 {[%clk 0:03:00]}  Nf6 {[%clk 0:02:58]} 4. d4 {[%clk 0:03:01]}  exd4 {[%clk 0:02:58]} 5. Nxd4 {[%clk 0:03:02]}  d6 {[%clk 0:02:56]} 6. Nxc6 {[%clk 0:02:56]}  bxc6 {[%clk 0:02:56]} 7. Bd3 {[%clk 0:02:57]}  g6 {[%clk 0:02:56]} 8. O-O {[%clk 0:02:41]}  Bg7 {[%clk 0:02:55]} 9. Bg5 {[%clk 0:02:40]}  h6 {[%clk 0:02:55]} 10. Bh4 {[%clk 0:02:40]}  O-O {[%clk 0:02:53]} 11. f4 {[%clk 0:02:39]}  Rb8 {[%clk 0:02:52]} 12. Rb1 {[%clk 0:02:35]}  Re8 {[%clk 0:02:49]} 13. Qd2 {[%clk 0:02:32]}  Qd7 {[%clk 0:02:40]} 14. h3 {[%clk 0:02:30]}  Nh7 {[%clk 0:02:37]} 15. g4 {[%clk 0:02:03]}  g5 {[%clk 0:02:20]} 16. fxg5 {[%clk 0:02:01]}  Nxg5 {[%clk 0:02:20]} 17. Bxg5 {[%clk 0:01:55]}  hxg5 {[%clk 0:02:21]} 18. Qxg5 {[%clk 0:01:54]}  Qe7 {[%clk 0:02:21]} 19. Qxe7 {[%clk 0:01:39]}  Rxe7 {[%clk 0:02:22]} 20. Nd1 {[%clk 0:01:37]}  d5 {[%clk 0:02:18]} 21. exd5 {[%clk 0:01:32]}  cxd5 {[%clk 0:02:19]} 22. b3 {[%clk 0:01:30]}  c5 {[%clk 0:02:15]} 23. Nf2 {[%clk 0:01:22]}  Bc3 {[%clk 0:02:10]} 24. Rbd1 {[%clk 0:01:14]}  Bb7 {[%clk 0:02:07]} 25. Bf5 {[%clk 0:01:12]}  Kg7 {[%clk 0:02:07]} 26. Nd3 {[%clk 0:01:10]}  Bd4+ {[%clk 0:01:06]} 27. Kg2 {[%clk 0:01:07]}  Re2+ {[%clk 0:01:05]} 28. Kg3 {[%clk 0:00:50]}  Rbe8 {[%clk 0:00:55]} 29. Nf4 {[%clk 0:00:45]}  R2e3+ {[%clk 0:00:52]} 30. Rf3 {[%clk 0:00:45]}  Ba6 {[%clk 0:00:48]} 31. Bd3 {[%clk 0:00:28]}  Rxf3+ {[%clk 0:00:45]} 32. Kxf3 {[%clk 0:00:27]}  Bb7 {[%clk 0:00:44]} 33. Nh5+ {[%clk 0:00:21]}  Kh6 {[%clk 0:00:41]} 34. Ng3 {[%clk 0:00:20]}  Bc8 {[%clk 0:00:16]} 35. Nf5+ {[%clk 0:00:19]}  Bxf5 {[%clk 0:00:16]} 36. Bxf5 {[%clk 0:00:20]}  Re3+ {[%clk 0:00:15]} 37. Kg2 {[%clk 0:00:16]}  Re2+ {[%clk 0:00:15]} 38. Kf3 {[%clk 0:00:15]}  Re3+ {[%clk 0:00:15]} 39. Kg2 {[%clk 0:00:11]}  Kg5 {[%clk 0:00:15]} 40. Rd3 {[%clk 0:00:08]}  Re2+ {[%clk 0:00:14]} 41. Kf3 {[%clk 0:00:08]}  Rh2 {[%clk 0:00:10]} 42. Kg3 {[%clk 0:00:04]}  Be5+ {[%clk 0:00:09]} 43. Kf3 {[%clk 0:00:04]}  Rxh3+ {[%clk 0:00:09]} 44. Ke2 {[%clk 0:00:05]}  Rh2+ {[%clk 0:00:09]} 45. Kd1 {[%clk 0:00:04]}  d4 {[%clk 0:00:08]} 46. Bd7 {[%clk 0:00:03]}  Bf4 {[%clk 0:00:08]} 47. Bb5 {[%clk 0:00:02]}  Rh1+ {[%clk 0:00:07]} 48. Ke2 {[%clk 0:00:02]}  Rh2+ {[%clk 0:00:08]} 49. Kd1 {[%clk 0:00:02]}  Kxg4 {[%clk 0:00:08]} 50. Bc4 {[%clk 0:00:02]}  Be3 {[%clk 0:00:07]} 51. Bxf7 {[%clk 0:00:01]}  Rh1+ {[%clk 0:00:07]} 52. Ke2 {[%clk 0:00:01]}  Rh2+ {[%clk 0:00:08]} 53. Kd1 {[%clk 0:00:01]}  Kf3 {[%clk 0:00:08]} 54. Bd5+ {[%clk 0:00:01]}  Kf2 {[%clk 0:00:08]} 55. c4 {[%clk 0:00:01]}  Rh4 {[%clk 0:00:07]} 56. Kc2 {[%clk 0:00:01]}  Rg4 {[%clk 0:00:07]} 57. Rd1 {[%clk 0:00:01]}  Ke2 {[%clk 0:00:07]} 58. Rh1 {[%clk 0:00:01]}  d3+ {[%clk 0:00:07]} 59. Kc3 {[%clk 0:00:01]}  d2 {[%clk 0:00:07]} 60. Kb2 {[%clk 0:00:01]}  Kd3 {[%clk 0:00:06]} 61. Rd1 {[%clk 0:00:01]}  Rd4 {[%clk 0:00:06]} 62. Be6 {[%clk 0:00:02]}  Rf4 {[%clk 0:00:06]} 63. Bg8 {[%clk 0:00:01]}  Rf2 {[%clk 0:00:05]} 0-1


[Site "https://www.chess.com"]

[Event "Titled Tuesday Blitz July 20 2021"]
[White "Tomaszewski, Kacper"]
[Black "Nguyen, Hong Anh"]
[WhiteFideId "1127373"]
[BlackFideId "12406732"]
[WhiteElo "2162"]
[BlackElo "1974"]
[Result "1-0"]
[Round "07"]
[TimeControl "180+1"]
[Date "2021.07.21"]
[WhiteClock "0:00:21"]
[BlackClock "0:00:28"]

1. d4 {[%clk 0:03:00]}  Nf6 {[%clk 0:02:59]} 2. c4 {[%clk 0:03:00]}  g6 {[%clk 0:02:58]} 3. Nc3 {[%clk 0:03:01]}  d5 {[%clk 0:02:57]} 4. Nf3 {[%clk 0:02:59]}  Bg7 {[%clk 0:02:57]} 5. cxd5 {[%clk 0:03:00]}  Nxd5 {[%clk 0:02:56]} 6. Bg5 {[%clk 0:03:00]}  c6 {[%clk 0:02:48]} 7. e4 {[%clk 0:02:57]}  Nxc3 {[%clk 0:02:48]} 8. bxc3 {[%clk 0:02:58]}  O-O {[%clk 0:02:48]} 9. Be2 {[%clk 0:02:57]}  Nd7 {[%clk 0:02:43]} 10. O-O {[%clk 0:02:57]}  Nf6 {[%clk 0:02:44]} 11. e5 {[%clk 0:02:54]}  Nd5 {[%clk 0:02:42]} 12. Qd2 {[%clk 0:02:51]}  b5 {[%clk 0:02:35]} 13. a4 {[%clk 0:02:45]}  a6 {[%clk 0:02:24]} 14. axb5 {[%clk 0:02:44]}  cxb5 {[%clk 0:02:24]} 15. Bxb5 {[%clk 0:02:41]}  Bb7 {[%clk 0:02:23]} 16. Be2 {[%clk 0:02:38]}  Qc7 {[%clk 0:02:15]} 17. c4 {[%clk 0:02:35]}  Nb6 {[%clk 0:02:15]} 18. Rfc1 {[%clk 0:02:30]}  Rad8 {[%clk 0:02:11]} 19. Qe3 {[%clk 0:02:20]}  Bxf3 {[%clk 0:02:06]} 20. Bxf3 {[%clk 0:02:18]}  Nxc4 {[%clk 0:02:06]} 21. Qe2 {[%clk 0:01:57]}  Rxd4 {[%clk 0:01:50]} 22. Be3 {[%clk 0:01:56]}  Rdd8 {[%clk 0:01:42]} 23. Qxc4 {[%clk 0:01:47]}  Qxe5 {[%clk 0:01:42]} 24. Rxa6 {[%clk 0:01:44]}  Bf6 {[%clk 0:01:33]} 25. g3 {[%clk 0:01:38]}  h5 {[%clk 0:01:28]} 26. h4 {[%clk 0:01:35]}  Qf5 {[%clk 0:01:24]} 27. Kg2 {[%clk 0:01:33]}  Rc8 {[%clk 0:01:23]} 28. Rc6 {[%clk 0:01:26]}  Rxc6 {[%clk 0:01:20]} 29. Qxc6 {[%clk 0:01:25]}  Kg7 {[%clk 0:01:20]} 30. Qe4 {[%clk 0:01:22]}  Qb5 {[%clk 0:01:17]} 31. Rc5 {[%clk 0:00:59]}  Qb2 {[%clk 0:01:16]} 32. Qf4 {[%clk 0:00:56]}  Rd8 {[%clk 0:01:05]} 33. Rd5 {[%clk 0:00:52]}  Rc8 {[%clk 0:00:55]} 34. Bd4 {[%clk 0:00:51]}  Bxd4 {[%clk 0:00:51]} 35. Qxd4+ {[%clk 0:00:51]}  Qxd4 {[%clk 0:00:51]} 36. Rxd4 {[%clk 0:00:51]}  Rc7 {[%clk 0:00:51]} 37. Rb4 {[%clk 0:00:51]}  f6 {[%clk 0:00:47]} 38. Rb7 {[%clk 0:00:51]}  Rxb7 {[%clk 0:00:45]} 39. Bxb7 {[%clk 0:00:52]}  g5 {[%clk 0:00:44]} 40. Bf3 {[%clk 0:00:49]}  Kg6 {[%clk 0:00:42]} 41. Be4+ {[%clk 0:00:43]}  f5 {[%clk 0:00:41]} 42. Bc6 {[%clk 0:00:42]}  f4 {[%clk 0:00:36]} 43. gxf4 {[%clk 0:00:39]}  gxf4 {[%clk 0:00:34]} 44. Be8+ {[%clk 0:00:39]}  Kf5 {[%clk 0:00:32]} 45. Bxh5 {[%clk 0:00:38]}  e5 {[%clk 0:00:32]} 46. Be8 {[%clk 0:00:28]}  Kg4 {[%clk 0:00:29]} 47. h5 {[%clk 0:00:28]}  Kg5 {[%clk 0:00:28]} 48. Kf3 {[%clk 0:00:28]}  Kf5 {[%clk 0:00:28]} 49. h6 {[%clk 0:00:28]}  e4+ {[%clk 0:00:26]} 50. Ke2 {[%clk 0:00:28]}  Kf6 {[%clk 0:00:26]} 51. h7 {[%clk 0:00:16]}  Kg7 {[%clk 0:00:26]} 52. Bg6 {[%clk 0:00:16]}  e3 {[%clk 0:00:22]} 53. f3 {[%clk 0:00:16]}  Kh8 {[%clk 0:00:22]} 54. Bd3 {[%clk 0:00:16]}  Kg7 {[%clk 0:00:22]} 55. Ke1 {[%clk 0:00:16]}  Kh8 {[%clk 0:00:22]} 56. Kd1 {[%clk 0:00:16]}  Kg7 {[%clk 0:00:22]} 57. Kc2 {[%clk 0:00:16]}  e2 {[%clk 0:00:21]} 58. Kd2 {[%clk 0:00:17]}  e1=Q+ {[%clk 0:00:20]} 59. Kxe1 {[%clk 0:00:17]}  Kh8 {[%clk 0:00:21]} 60. Kd2 {[%clk 0:00:18]}  Kg7 {[%clk 0:00:22]} 61. Kc3 {[%clk 0:00:18]}  Kh8 {[%clk 0:00:23]} 62. Kd4 {[%clk 0:00:19]}  Kg7 {[%clk 0:00:24]} 63. Ke5 {[%clk 0:00:20]}  Kh8 {[%clk 0:00:25]} 64. Kxf4 {[%clk 0:00:20]}  Kg7 {[%clk 0:00:26]} 65. Kg5 {[%clk 0:00:20]}  Kh8 {[%clk 0:00:27]} 66. Kf5 {[%clk 0:00:20]}  Kg7 {[%clk 0:00:27]} 67. Ke6 {[%clk 0:00:20]}  Kh8 {[%clk 0:00:28]} 68. Ke7 {[%clk 0:00:20]}  Kg7 {[%clk 0:00:28]} 69. f4 {[%clk 0:00:21]}  Kh8 {[%clk 0:00:29]} 70. f5 {[%clk 0:00:21]}  Kg7 {[%clk 0:00:29]} 71. f6+ {[%clk 0:00:21]}  Kh8 {[%clk 0:00:27]} 72. f7 {[%clk 0:00:21]}  Kg7 {[%clk 0:00:28]} 73. f8=Q# {[%clk 0:00:21]} 1-0


[Site "https://www.chess.com"]

[Event "Titled Tuesday Blitz July 20 2021"]
[White "Trakru, Rohun"]
[Black "Karthikeyan, Murali"]
[WhiteFideId "2097613"]
[BlackFideId "5074452"]
[WhiteElo "2539"]
[BlackElo "2734"]
[Result "0-1"]
[Round "07"]
[TimeControl "180+1"]
[Date "2021.07.21"]
[WhiteClock "0:00:04"]
[BlackClock "0:00:09"]

1. d4 {[%clk 0:03:00]}  Nf6 {[%clk 0:02:59]} 2. Bg5 {[%clk 0:02:58]}  d5 {[%clk 0:02:57]} 3. Bxf6 {[%clk 0:02:58]}  gxf6 {[%clk 0:02:58]} 4. e3 {[%clk 0:02:52]}  e5 {[%clk 0:02:57]} 5. c4 {[%clk 0:02:35]}  exd4 {[%clk 0:02:46]} 6. Qxd4 {[%clk 0:02:27]}  Nc6 {[%clk 0:02:40]} 7. Qxd5 {[%clk 0:02:11]}  Qxd5 {[%clk 0:02:28]} 8. cxd5 {[%clk 0:02:12]}  Nb4 {[%clk 0:02:29]} 9. Na3 {[%clk 0:02:03]}  Nxd5 {[%clk 0:02:26]} 10. O-O-O {[%clk 0:01:56]}  Be6 {[%clk 0:02:04]} 11. Nb5 {[%clk 0:01:47]}  a6 {[%clk 0:01:58]} 12. Nd4 {[%clk 0:01:06]}  O-O-O {[%clk 0:01:52]} 13. g3 {[%clk 0:00:58]}  Bh6 {[%clk 0:01:28]} 14. Nxe6 {[%clk 0:00:51]}  fxe6 {[%clk 0:01:28]} 15. Bh3 {[%clk 0:00:52]}  f5 {[%clk 0:01:16]} 16. a3 {[%clk 0:00:45]}  Rd6 {[%clk 0:01:00]} 17. Ne2 {[%clk 0:00:36]}  Rhd8 {[%clk 0:00:58]} 18. Nf4 {[%clk 0:00:19]}  Bxf4 {[%clk 0:00:45]} 19. exf4 {[%clk 0:00:20]}  Nf6 {[%clk 0:00:31]} 20. Rxd6 {[%clk 0:00:16]}  Rxd6 {[%clk 0:00:32]} 21. Bg2 {[%clk 0:00:16]}  c5 {[%clk 0:00:19]} 22. Bf3 {[%clk 0:00:16]}  Kc7 {[%clk 0:00:14]} 23. Re1 {[%clk 0:00:15]}  b5 {[%clk 0:00:13]} 24. Re5 {[%clk 0:00:15]}  Nd7 {[%clk 0:00:13]} 25. Re2 {[%clk 0:00:14]}  c4 {[%clk 0:00:13]} 26. Kc2 {[%clk 0:00:13]}  Nc5 {[%clk 0:00:13]} 27. h3 {[%clk 0:00:11]}  Nb3 {[%clk 0:00:13]} 28. Re3 {[%clk 0:00:07]}  Nd4+ {[%clk 0:00:03]} 29. Kc3 {[%clk 0:00:08]}  Nxf3 {[%clk 0:00:01]} 30. Rxf3 {[%clk 0:00:08]}  Kc6 {[%clk 0:00:02]} 31. g4 {[%clk 0:00:09]}  Kc5 {[%clk 0:00:02]} 32. g5 {[%clk 0:00:09]}  a5 {[%clk 0:00:02]} 33. h4 {[%clk 0:00:07]}  b4+ {[%clk 0:00:03]} 34. axb4+ {[%clk 0:00:07]}  axb4+ {[%clk 0:00:04]} 35. Kc2 {[%clk 0:00:08]}  Rd4 {[%clk 0:00:04]} 36. h5 {[%clk 0:00:08]}  Rd7 {[%clk 0:00:02]} 37. g6 {[%clk 0:00:08]}  hxg6 {[%clk 0:00:03]} 38. hxg6 {[%clk 0:00:08]}  Rg7 {[%clk 0:00:04]} 39. Rg3 {[%clk 0:00:08]}  Kd4 {[%clk 0:00:05]} 40. Kd2 {[%clk 0:00:03]}  Kd5 {[%clk 0:00:04]} 41. Kc2 {[%clk 0:00:03]}  Kc5 {[%clk 0:00:04]} 42. Kd2 {[%clk 0:00:03]}  Kd4 {[%clk 0:00:04]} 43. Kc2 {[%clk 0:00:03]}  Rg8 {[%clk 0:00:04]} 44. g7 {[%clk 0:00:03]}  Ke4 {[%clk 0:00:05]} 45. Re3+ {[%clk 0:00:03]}  Kxf4 {[%clk 0:00:05]} 46. Rxe6 {[%clk 0:00:04]}  Rxg7 {[%clk 0:00:06]} 47. Rc6 {[%clk 0:00:05]}  c3 {[%clk 0:00:05]} 48. bxc3 {[%clk 0:00:06]}  bxc3 {[%clk 0:00:06]} 49. Rxc3 {[%clk 0:00:06]}  Rg2 {[%clk 0:00:06]} 50. Kd1 {[%clk 0:00:05]}  Rxf2 {[%clk 0:00:07]} 51. Ke1 {[%clk 0:00:06]}  Rf3 {[%clk 0:00:08]} 52. Rc8 {[%clk 0:00:03]}  Kg3 {[%clk 0:00:07]} 53. Rg8+ {[%clk 0:00:03]}  Kf4 {[%clk 0:00:06]} 54. Ke2 {[%clk 0:00:04]}  Ra3 {[%clk 0:00:05]} 55. Kf2 {[%clk 0:00:03]}  Ra2+ {[%clk 0:00:06]} 56. Ke1 {[%clk 0:00:02]}  Kf3 {[%clk 0:00:06]} 57. Rc8 {[%clk 0:00:02]}  Ra1+ {[%clk 0:00:06]} 58. Kd2 {[%clk 0:00:02]}  f4 {[%clk 0:00:07]} 59. Rg8 {[%clk 0:00:02]}  Kf2 {[%clk 0:00:07]} 60. Rf8 {[%clk 0:00:01]}  f3 {[%clk 0:00:08]} 61. Kd3 {[%clk 0:00:02]}  Kg2 {[%clk 0:00:07]} 62. Ke3 {[%clk 0:00:02]}  Re1+ {[%clk 0:00:07]} 63. Kd2 {[%clk 0:00:02]}  f2 {[%clk 0:00:08]} 64. Rg8+ {[%clk 0:00:02]}  Kf1 {[%clk 0:00:08]} 65. Rf8 {[%clk 0:00:03]}  Kg2 {[%clk 0:00:09]} 66. Rg8+ {[%clk 0:00:03]}  Kh3 {[%clk 0:00:09]} 67. Rf8 {[%clk 0:00:04]}  f1=Q {[%clk 0:00:09]} 0-1


[Site "https://www.chess.com"]

[Event "Titled Tuesday Blitz July 20 2021"]
[White "Tsyhanchuk_Stanislav"]
[Black "Nguyen, Hong Ngoc"]
[BlackFideId "12403083"]
[WhiteElo "2482"]
[BlackElo "1830"]
[Result "0-1"]
[Round "07"]
[TimeControl "180+1"]
[Date "2021.07.21"]
[WhiteClock "0:00:01"]
[BlackClock "0:00:41"]

1. e4 {[%clk 0:03:00]}  d6 {[%clk 0:02:59]} 2. d4 {[%clk 0:02:58]}  Nf6 {[%clk 0:02:58]} 3. Nc3 {[%clk 0:02:58]}  g6 {[%clk 0:02:57]} 4. f4 {[%clk 0:02:58]}  Bg7 {[%clk 0:02:57]} 5. Nf3 {[%clk 0:02:58]}  Bg4 {[%clk 0:02:57]} 6. Be3 {[%clk 0:02:44]}  d5 {[%clk 0:02:54]} 7. exd5 {[%clk 0:02:12]}  Nxd5 {[%clk 0:02:50]} 8. Nxd5 {[%clk 0:02:06]}  Qxd5 {[%clk 0:02:51]} 9. Be2 {[%clk 0:02:07]}  O-O {[%clk 0:02:37]} 10. O-O {[%clk 0:02:06]}  c6 {[%clk 0:02:36]} 11. Qd2 {[%clk 0:01:56]}  Nd7 {[%clk 0:02:26]} 12. c4 {[%clk 0:01:44]}  Qd6 {[%clk 0:02:25]} 13. Ne5 {[%clk 0:01:25]}  Bxe2 {[%clk 0:02:22]} 14. Qxe2 {[%clk 0:01:25]}  Nf6 {[%clk 0:02:20]} 15. Qf3 {[%clk 0:01:21]}  e6 {[%clk 0:02:20]} 16. Rad1 {[%clk 0:01:21]}  Rfd8 {[%clk 0:02:17]} 17. h3 {[%clk 0:01:09]}  Qb4 {[%clk 0:02:08]} 18. b3 {[%clk 0:01:04]}  a5 {[%clk 0:01:44]} 19. Bd2 {[%clk 0:01:03]}  Qa3 {[%clk 0:01:40]} 20. Bc1 {[%clk 0:00:17]}  Qxa2 {[%clk 0:01:24]} 21. Rf2 {[%clk 0:00:17]}  Qb1 {[%clk 0:01:24]} 22. Re1 {[%clk 0:00:07]}  a4 {[%clk 0:01:21]} 23. Rb2 {[%clk 0:00:03]}  Qa1 {[%clk 0:01:18]} 24. b4 {[%clk 0:00:02]}  a3 {[%clk 0:01:17]} 25. Rd2 {[%clk 0:00:01]}  Rxd4 {[%clk 0:00:47]} 26. Qe3 {[%clk 0:00:02]}  Rxd2 {[%clk 0:00:42]} 27. Bxd2 {[%clk 0:00:02]}  Qb2 {[%clk 0:00:42]} 28. Bc3 {[%clk 0:00:01]}  Qb3 {[%clk 0:00:42]} 29. Qd3 {[%clk 0:00:01]}  a2 {[%clk 0:00:41]} 0-1


[Site "https://www.chess.com"]

[Event "Titled Tuesday Blitz July 20 2021"]
[White "Tymrakiewicz, Rafal"]
[Black "Tologon tegin, Semetei"]
[WhiteFideId "1108832"]
[BlackFideId "13800574"]
[WhiteElo "2172"]
[BlackElo "2224"]
[Result "0-1"]
[Round "07"]
[TimeControl "180+1"]
[Date "2021.07.21"]
[WhiteClock "0:00:05"]
[BlackClock "0:00:02"]

1. d4 {[%clk 0:03:00]}  Nf6 {[%clk 0:02:59]} 2. Bg5 {[%clk 0:02:59]}  d5 {[%clk 0:02:58]} 3. e3 {[%clk 0:02:55]}  c5 {[%clk 0:02:58]} 4. c3 {[%clk 0:02:55]}  Nc6 {[%clk 0:02:55]} 5. Nd2 {[%clk 0:02:49]}  e5 {[%clk 0:02:38]} 6. Bb5 {[%clk 0:02:44]}  cxd4 {[%clk 0:02:32]} 7. cxd4 {[%clk 0:02:43]}  exd4 {[%clk 0:02:22]} 8. exd4 {[%clk 0:02:39]}  Be7 {[%clk 0:02:20]} 9. Ngf3 {[%clk 0:02:38]}  O-O {[%clk 0:02:19]} 10. O-O {[%clk 0:02:39]}  Bg4 {[%clk 0:02:17]} 11. h3 {[%clk 0:02:37]}  Nxd4 {[%clk 0:02:11]} 12. Nxd4 {[%clk 0:02:32]}  Bxd1 {[%clk 0:02:10]} 13. Raxd1 {[%clk 0:02:33]}  Ne4 {[%clk 0:01:39]} 14. Nxe4 {[%clk 0:02:16]}  Bxg5 {[%clk 0:01:38]} 15. Nc3 {[%clk 0:02:13]}  Bf6 {[%clk 0:01:34]} 16. Nce2 {[%clk 0:02:08]}  Qb6 {[%clk 0:01:31]} 17. Rd2 {[%clk 0:02:05]}  Rfd8 {[%clk 0:01:22]} 18. Rfd1 {[%clk 0:02:03]}  Rac8 {[%clk 0:01:13]} 19. Ba4 {[%clk 0:02:00]}  g6 {[%clk 0:01:03]} 20. g3 {[%clk 0:01:59]}  Rc4 {[%clk 0:00:47]} 21. Bb3 {[%clk 0:01:57]}  Rb4 {[%clk 0:00:46]} 22. Nc2 {[%clk 0:01:48]}  Rxb3 {[%clk 0:00:34]} 23. axb3 {[%clk 0:01:49]}  Qxb3 {[%clk 0:00:26]} 24. Ncd4 {[%clk 0:01:43]}  Qb4 {[%clk 0:00:23]} 25. h4 {[%clk 0:01:42]}  h5 {[%clk 0:00:23]} 26. Kg2 {[%clk 0:01:41]}  a5 {[%clk 0:00:22]} 27. Nc2 {[%clk 0:01:35]}  Qxb2 {[%clk 0:00:22]} 28. Ne3 {[%clk 0:01:35]}  Qe5 {[%clk 0:00:20]} 29. Nf4 {[%clk 0:00:59]}  d4 {[%clk 0:00:17]} 30. Nc4 {[%clk 0:01:00]}  Qe4+ {[%clk 0:00:17]} 31. f3 {[%clk 0:00:59]}  Qf5 {[%clk 0:00:14]} 32. Rd3 {[%clk 0:00:48]}  a4 {[%clk 0:00:13]} 33. Rb1 {[%clk 0:00:42]}  b5 {[%clk 0:00:13]} 34. Nd2 {[%clk 0:00:31]}  g5 {[%clk 0:00:10]} 35. hxg5 {[%clk 0:00:28]}  Bxg5 {[%clk 0:00:10]} 36. Ne4 {[%clk 0:00:29]}  Bxf4 {[%clk 0:00:10]} 37. gxf4 {[%clk 0:00:30]}  Kh8 {[%clk 0:00:08]} 38. Rh1 {[%clk 0:00:28]}  Rg8+ {[%clk 0:00:06]} 39. Kf2 {[%clk 0:00:28]}  Rg6 {[%clk 0:00:04]} 40. Rxd4 {[%clk 0:00:22]}  Qxf4 {[%clk 0:00:05]} 41. Rd5 {[%clk 0:00:15]}  Kg7 {[%clk 0:00:04]} 42. Rdxh5 {[%clk 0:00:13]}  a3 {[%clk 0:00:03]} 43. Rh7+ {[%clk 0:00:13]}  Kf8 {[%clk 0:00:03]} 44. R1h4 {[%clk 0:00:10]}  Qe5 {[%clk 0:00:02]} 45. R4h5 {[%clk 0:00:05]}  Qd4+ {[%clk 0:00:02]} 0-1


[Site "https://www.chess.com"]